fUSD/lending_fUSD_20260329
["ID","MTS","AMOUNT","RATE_DAILY","PERIOD"]
[419008307,1774744238537,-545.87152191,0.00012222,2]
[419008308,1774744238548,-258.6,0.00012222,2]
[419008309,1774744238559,-383.736,0.00012222,2]
[419008310,1774744238571,-713.50810772,0.00012222,2]
[419008311,1774744238590,-2226.45747354,0.00012222,2]
[419008312,1774744238617,-6780.4,0.00012222,2]
[419008313,1774744238630,-4241.59355284,0.00012222,2]
[419008314,1774744238715,-615.21547425,0.00012222,2]
[419008318,1774744240710,-1368101.66010977,0.00012222,2]
[419008319,1774744240720,-2115.6,0.00012222,2]
[419008320,1774744240729,-9301.3479,0.00012223,2]
[419008321,1774744240739,-150.99,0.00012223,2]
[419008322,1774744240748,-4619.96,0.00012223,2]
[419008323,1774744240758,-22902.63,0.00012223,2]
[419008324,1774744240767,-150.99,0.00012223,2]
[419008325,1774744240777,-499.99,0.00012223,2]
[419008326,1774744240787,-9999.99,0.00012223,2]
[419008327,1774744240796,-2500.0,0.00012223,2]
[419008328,1774744240806,-815.425,0.00012223,2]
[419008329,1774744240816,-150.0,0.00012223,2]
[419008330,1774744240825,-150.0,0.00012223,2]
[419008331,1774744240835,-4326.57463215,0.00012223,2]
[419008332,1774744240844,-173.419,0.00012224,2]
[419008333,1774744240853,-1600.579,0.00012224,2]
[419008334,1774744240863,-326.80387008,0.00012246,2]
[419008335,1774744240872,-793.64,0.00012315,2]
[419008336,1774744240881,-207.75293604,0.00012315,2]
[419008337,1774744240891,-500.0,0.00012315,2]
[419008338,1774744240900,-500.0,0.00012315,2]
[419008339,1774744240910,-500.0,0.00012315,2]
[419008340,1774744240919,-500.0,0.00012315,2]
[419008341,1774744240928,-500.0,0.00012315,2]
[419008342,1774744240938,-500.0,0.00012315,2]
[419008343,1774744240947,-500.0,0.00012315,2]
[419008344,1774744240956,-500.0,0.00012315,2]
[419008345,1774744240965,-436.97695346,0.00012315,2]
[419008346,1774744240974,-151.0,0.00012315,2]
[419008347,1774744240984,-151.0,0.00012315,2]
[419008348,1774744240994,-500.0,0.00012315,2]
[419008349,1774744241003,-500.0,0.00012315,2]
[419008350,1774744241012,-562.81379167,0.00012315,2]
[419008351,1774744241022,-151.0,0.00012315,2]
[419008352,1774744241031,-151.0,0.00012315,2]
[419008353,1774744241040,-151.0,0.00012315,2]
[419008354,1774744241050,-151.0,0.00012315,2]
[419008355,1774744241059,-151.0,0.00012315,2]
[419008356,1774744241068,-151.0,0.00012315,2]
[419008357,1774744241077,-151.0,0.00012315,2]
[419008358,1774744241087,-151.0,0.00012315,2]
[419008359,1774744241096,-151.0,0.00012315,2]
[419008360,1774744241106,-848.0,0.00012322,2]
[419008361,1774744241116,-232.0,0.00012322,2]
[419008362,1774744241125,-2500000.0,0.00012323,2]
[419008363,1774744241134,-1311.0,0.00012346,2]
[419008364,1774744241144,-170.0,0.00012346,2]
[419008365,1774744241153,-391.0,0.00012371,2]
[419008366,1774744241163,-500.0,0.00012373,2]
[419008367,1774744241172,-500.0,0.00012373,2]
[419008368,1774744241182,-500.0,0.00012373,2]
[419008369,1774744241192,-500.0,0.00012373,2]
[419008370,1774744241202,-500.0,0.00012373,2]
[419008371,1774744241211,-500.0,0.00012373,2]
[419008372,1774744241221,-500.0,0.00012373,2]
[419008373,1774744241231,-29865.1844,0.00012424,2]
[419008374,1774744241240,-1000.0,0.00012424,2]
[419008375,1774744241249,-500.0,0.00012473,2]
[419008376,1774744241259,-500.0,0.00012473,2]
[419008377,1774744241268,-500.0,0.00012473,2]
[419008378,1774744241277,-624.88629479,0.00012473,2]
[419008379,1774744241287,-500.0,0.00012495,2]
[419008380,1774744241295,-793.64,0.00012589,2]
[419008381,1774744241305,-2000.0,0.00012619,2]
[419008382,1774744241315,-4326.57463207,0.00012632,2]
[419008383,1774744241325,-304.68977321,0.00012662,2]
[419008384,1774744241334,-304.68977321,0.00012662,2]
[419008385,1774744241344,-195.0,0.0001275,2]
[419008386,1774744241354,-195.0,0.0001275,2]
[419008387,1774744241363,-250.0,0.0001275,2]
[419008388,1774744241373,-195.0,0.0001275,2]
[419008389,1774744241383,-500.0,0.00012769,2]
[419008390,1774744241393,-793.64,0.00012863,2]
[419008391,1774744241402,-1046.25965825,0.00012921,2]
[419008392,1774744241413,-196.23259882,0.00012921,2]
[419008393,1774744241422,-1000.0,0.00012921,2]
[419008394,1774744241432,-1000.0,0.00012921,2]
[419008395,1774744241442,-1000.0,0.00012921,2]
[419008397,1774744241452,-1000.0,0.00012921,2]
[419008398,1774744241461,-1000.0,0.00012921,2]
[419008399,1774744241470,-207.03,0.00012932,2]
[419008400,1774744241480,-250.0,0.00013,2]
[419008401,1774744241489,-420.0,0.00013002,2]
[419008402,1774744241499,-300.0,0.00013002,2]
[419008403,1774744241509,-547.78945051,0.00013021,2]
[419008404,1774744241518,-500.0,0.00013021,2]
[419008405,1774744241528,-1000.0,0.00013021,2]
[419008406,1774744241537,-1680.0,0.00013026,2]
[419008407,1774744241547,-4326.57463207,0.0001304,2]
[419008408,1774744241557,-500.0,0.00013043,2]
[419008409,1774744241567,-793.64,0.00013137,2]
[419008410,1774744241576,-304.68977321,0.00013201,2]
[419008411,1774744241586,-304.68977321,0.00013201,2]
[419008412,1774744241595,-255.0,0.00013307,2]
[419008413,1774744241605,-500.0,0.00013317,2]
[419008414,1774744241615,-150.0,0.00013403,2]
[419008415,1774744241625,-299.148323,0.00013404,2]
[419008416,1774744241635,-793.64,0.00013411,2]
[419008417,1774744241645,-3240.0,0.00013425,2]
[419008418,1774744241655,-4326.57463207,0.00013449,2]
[419008419,1774744241665,-1001.78785805,0.00013468,2]
[419008420,1774744241674,-1500.0,0.00013468,2]
[419008421,1774744241684,-1500.0,0.00013468,2]
[419008422,1774744241694,-500.0,0.00013468,2]
[419008423,1774744241704,-1500.0,0.00013468,2]
[419008424,1774744241713,-1500.0,0.00013568,2]
[419008425,1774744241724,-415.24917293,0.00013591,2]
[419008426,1774744241733,-500.0,0.00013682,2]
[419008427,1774744241742,-793.7,0.00013685,2]
[419008428,1774744241752,-502.58215356,0.00013698,2]
[419008429,1774744241762,-500.0,0.00013698,2]
[419008430,1774744241771,-500.0,0.00013698,2]
[419008431,1774744241780,-500.0,0.00013698,2]
[419008432,1774744241790,-500.0,0.00013698,2]
[419008433,1774744241799,-313.06,0.00013698,2]
[419008434,1774744241809,-500.0,0.00013698,2]
[419008435,1774744241819,-500.0,0.00013698,2]
[419008436,1774744241828,-500.0,0.00013698,2]
[419008437,1774744241838,-401.01,0.00013698,2]
[419008438,1774744241847,-500.0,0.00013698,2]
[419008439,1774744241857,-500.0,0.00013698,2]
[419008440,1774744241866,-500.0,0.00013698,2]
[419008441,1774744241876,-500.0,0.00013698,2]
[419008442,1774744241885,-248.51,0.00013698,2]
[419008443,1774744241894,-500.0,0.00013698,2]
[419008444,1774744241903,-500.0,0.00013698,2]
[419008445,1774744241913,-500.0,0.00013698,2]
[419008446,1774744241922,-500.0,0.00013698,2]
[419008447,1774744241932,-500.0,0.00013698,2]
[419008448,1774744241942,-500.0,0.00013698,2]
[419008449,1774744241953,-500.0,0.00013698,2]
[419008450,1774744241963,-500.0,0.00013698,2]
[419008451,1774744241971,-500.0,0.00013698,2]
[419008452,1774744241981,-458.87313864,0.00013698,2]
[419008453,1774744241990,-500.0,0.00013698,2]
[419008454,1774744242000,-504.81663731,0.00013698,2]
[419008455,1774744242009,-500.0,0.00013698,2]
[419008456,1774744242020,-500.0,0.00013698,2]
[419008457,1774744242030,-502.67292552,0.00013698,2]
[419008458,1774744242040,-500.0,0.00013698,2]
[419008459,1774744242050,-500.0,0.00013698,2]
[419008460,1774744242059,-500.0,0.00013698,2]
[419008461,1774744242068,-500.0,0.00013698,2]
[419008462,1774744242078,-500.0,0.00013698,2]
[419008463,1774744242087,-500.0,0.00013698,2]
[419008464,1774744242096,-500.0,0.00013698,2]
[419008465,1774744242106,-500.0,0.00013698,2]
[419008466,1774744242220,-500.0,0.00013698,2]
[419008467,1774744242231,-500.0,0.00013698,2]
[419008468,1774744242240,-500.0,0.00013698,2]
[419008469,1774744242250,-500.0,0.00013698,2]
[419008470,1774744242259,-500.0,0.00013698,2]
[419008471,1774744242269,-500.0,0.00013698,2]
[419008472,1774744242280,-500.0,0.00013698,2]
[419008473,1774744242291,-500.0,0.00013698,2]
[419008474,1774744242301,-500.0,0.00013698,2]
[419008475,1774744242311,-214.95038261,0.00013698,2]
[419008476,1774744242321,-200.0,0.00013699,2]
[419008477,1774744242332,-225.27845209,0.00013699,2]
[419008478,1774744242342,-1062.42,0.000137,2]
[419008479,1774744242352,-389.73,0.000137,2]
[419008480,1774744242361,-697.86,0.000137,2]
[419008481,1774744242370,-588.84,0.000137,2]
[419008482,1774744242380,-6691.07,0.000137,2]
[419008483,1774744242390,-304.68977321,0.00013741,2]
[419008484,1774744242399,-500.0,0.00013777,2]
[419008485,1774744242409,-500.0,0.00013777,2]
[419008486,1774744242418,-500.0,0.00013777,2]
[419008487,1774744242427,-500.31991342,0.00013777,2]
[419008488,1774744242437,-210.76090136,0.00013777,2]
[419008489,1774744242447,-515.20157029,0.00013777,2]
[419008490,1774744242457,-500.0,0.00013777,2]
[419008491,1774744242466,-500.0,0.00013777,2]
[419008492,1774744242475,-500.0,0.00013777,2]
[419008493,1774744242485,-500.0,0.00013777,2]
[419008494,1774744242494,-500.0,0.00013777,2]
[419008495,1774744242503,-500.19721306,0.00013777,2]
[419008496,1774744242512,-312.40126688,0.00013777,2]
[419008497,1774744242522,-500.0,0.00013777,2]
[419008498,1774744242531,-500.0,0.00013777,2]
[419008499,1774744242541,-500.0,0.000138,2]
[419008500,1774744242550,-500.32204602,0.000138,2]
[419008501,1774744242559,-500.0,0.000138,2]
[419008502,1774744242570,-500.0,0.000138,2]
[419008503,1774744242580,-178.29807209,0.000138,2]
[419008504,1774744242590,-500.0,0.000138,2]
[419008505,1774744242599,-500.41881509,0.000138,2]
[419008506,1774744242609,-500.0,0.000138,2]
[419008507,1774744242618,-500.0,0.000138,2]
[419008508,1774744242627,-527.08003529,0.000138,2]
[419008509,1774744242636,-210.77827455,0.000138,2]
[419008510,1774744242646,-4326.57463207,0.00013857,2]
[419008511,1774744242655,-500.44276527,0.00013929,2]
[419008512,1774744242664,-500.0,0.00013933,2]
[419008513,1774744242675,-500.0,0.00013933,2]
[419008514,1774744242684,-500.0,0.00013933,2]
[419008515,1774744242695,-500.0,0.00013933,2]
[419008516,1774744242705,-500.0,0.0001394,2]
[419008517,1774744242714,-490.2202769,0.0001394,2]
[419008518,1774744242724,-162.87051938,0.0001394,2]
[419008519,1774744242733,-168.5281322,0.0001394,2]
[419008520,1774744242743,-500.0,0.0001394,2]
[419008521,1774744242752,-500.0,0.0001394,2]
[419008522,1774744242762,-500.23296602,0.0001394,2]
[419008523,1774744242771,-500.0,0.00013964,2]
[419008524,1774744242781,-500.0,0.00013964,2]
[419008525,1774744242791,-500.0,0.00013964,2]
[419008526,1774744242800,-500.0,0.00013973,2]
[419008527,1774744242809,-500.0,0.00013983,2]
[419008528,1774744242819,-512.0,0.00014,2]
[419008529,1774744242828,-165.06207776,0.00014008,2]
[419008530,1774744242837,-500.0,0.00014008,2]
[419008531,1774744242847,-163.41739568,0.00014008,2]
[419008532,1774744242857,-337.42004485,0.00014008,2]
[419008533,1774744242866,-500.0,0.00014008,2]
[419008534,1774744242875,-1140.68316587,0.00014016,2]
[419008535,1774744242884,-2000.0,0.00014016,2]
[419008536,1774744242893,-2000.0,0.00014016,2]
[419008537,1774744242902,-500.0,0.00014017,2]
[419008538,1774744242911,-164.60984594,0.00014063,2]
[419008539,1774744242921,-500.0,0.0001407,2]
[419008540,1774744242930,-501.05195253,0.0001407,2]
[419008541,1774744242939,-1219.4477189,0.00014073,2]
[419008542,1774744242949,-326.80387007,0.00014073,2]
[419008543,1774744242959,-2006.03354913,0.00014116,2]
[419008544,1774744242968,-2000.0,0.00014196,2]
[419008545,1774744242978,-242.952247,0.00014231,7]
[419008546,1774744242987,-4326.57463207,0.00014266,2]
[419008547,1774744242996,-587.0,0.00014276,2]
[419008548,1774744243005,-304.68977321,0.00014281,2]
[419008549,1774744243015,-1000.0,0.00014325,2]
[419008550,1774744243024,-957.81885159,0.00014325,2]
[419008551,1774744243034,-1000.0,0.00014325,2]
[419008552,1774744243044,-500.0,0.00014325,2]
[419008553,1774744243053,-1000.0,0.00014325,2]
[419008554,1774744243064,-2351.0,0.00014329,2]
[419008555,1774744243073,-548.13868249,0.00014348,2]
[419008556,1774744243083,-1000.0,0.00014348,2]
[419008557,1774744243092,-500.0,0.00014348,2]
[419008558,1774744243103,-1000.0,0.00014348,2]
[419008559,1774744243113,-1000.0,0.00014348,2]
[419008560,1774744243123,-163.11,0.00014371,2]
[419008562,1774744243133,-193.60844,0.00014381,7]
[419008563,1774744243142,-320.287156,0.00014381,7]
[419008564,1774744243152,-151.0453,0.000144,2]
[419008565,1774744243162,-1000.0,0.00014481,2]
[419008566,1774744243171,-1000.0,0.00014481,2]
[419008567,1774744243180,-433.0,0.00014493,2]
[419008568,1774744243190,-1000.0,0.00014521,2]
[419008569,1774744243199,-804.57451743,0.00014531,2]
[419008570,1774744243208,-1000.0,0.00014556,2]
[419008571,1774744243222,-1500.0,0.00014564,2]
[419008572,1774744243232,-1500.0,0.00014564,2]
[419008573,1774744243241,-288.84117108,0.00014565,2]
[419008574,1774744243250,-4326.57463207,0.00014674,2]
[419008575,1774744243260,-182.880918,0.00014729,7]
[419008576,1774744243269,-230.259161,0.00014729,7]
[419008577,1774744243279,-1500.0,0.00014873,2]
[419008578,1774744243293,-1500.0,0.00014873,2]
[419008579,1774744243308,-830.27435382,0.00014873,2]
[419008580,1774744243322,-1500.0,0.00014896,2]
[419008581,1774744243336,-1500.75630321,0.00014896,2]
[419008582,1774744243349,-1178.52624254,0.00014896,2]
[419008583,1774744243360,-203.523068,0.00014983,7]
[419008585,1774744243371,-160.0,0.00014999,2]
[419008586,1774744243384,-959.64475997,0.00014999,2]
[419008588,1774744243396,-160.0,0.00014999,2]
[419008590,1774744243409,-300.0,0.00015,2]
[419008591,1774744243422,-1500.0,0.00015029,2]
[419008592,1774744243434,-689.23658373,0.00015029,2]
[419008593,1774744243449,-397.4813256,0.00015069,2]
[419008594,1774744243461,-4326.57463207,0.00015083,2]
[419008595,1774744243472,-1007.43757273,0.00015104,2]
[419008596,1774744243484,-163.11,0.00015269,2]
[419008597,1774744243497,-153.80550818,0.00015289,2]
[419008598,1774744243509,-150.0,0.00015289,2]
[419008599,1774744243521,-500.0,0.00015289,2]
[419008600,1774744243534,-500.0,0.00015289,2]
[419008601,1774744243545,-150.0,0.00015289,2]
[419008602,1774744243557,-500.0,0.00015289,2]
[419008603,1774744243569,-500.0,0.00015289,2]
[419008604,1774744243581,-150.0,0.00015289,2]
[419008605,1774744243593,-283.63533377,0.00015289,2]
[419008606,1774744243604,-500.0,0.00015289,2]
[419008607,1774744243614,-500.0,0.00015289,2]
[419008608,1774744243627,-500.0,0.00015289,2]
[419008609,1774744243639,-150.05356968,0.00015289,2]
[419008610,1774744243652,-158.05207176,0.00015289,2]
[419008611,1774744243665,-500.0,0.00015289,2]
[419008612,1774744243677,-500.0,0.00015289,2]
[419008613,1774744243690,-500.0,0.00015289,2]
[419008614,1774744243702,-500.0,0.00015289,2]
[419008615,1774744243713,-500.0,0.00015289,2]
[419008616,1774744243725,-500.0,0.00015289,2]
[419008617,1774744243737,-500.0,0.00015289,2]
[419008618,1774744243749,-381.94618532,0.00015289,2]
[419008619,1774744243763,-500.0,0.00015289,2]
[419008620,1774744243776,-500.0,0.00015289,2]
[419008621,1774744243786,-500.0,0.00015289,2]
[419008622,1774744243796,-500.0,0.00015289,2]
[419008623,1774744243807,-150.0,0.00015289,2]
[419008624,1774744243817,-500.0,0.00015289,2]
[419008625,1774744243829,-500.0,0.00015289,2]
[419008626,1774744243842,-500.0,0.00015289,2]
[419008627,1774744243855,-294.91887286,0.00015289,2]
[419008628,1774744243867,-500.0,0.00015289,2]
[419008629,1774744243877,-500.0,0.00015289,2]
[419008630,1774744243889,-500.0,0.00015289,2]
[419008631,1774744243901,-150.0,0.00015289,2]
[419008632,1774744243914,-500.0,0.00015289,2]
[419008633,1774744243928,-500.0,0.00015289,2]
[419008634,1774744243939,-630.74303783,0.00015289,2]
[419008635,1774744243951,-500.0,0.00015289,2]
[419008636,1774744243964,-500.0,0.00015289,2]
[419008637,1774744243975,-500.0,0.00015289,2]
[419008638,1774744243986,-500.0,0.00015289,2]
[419008639,1774744243998,-500.0,0.00015289,2]
[419008640,1774744244008,-211.85433058,0.00015289,2]
[419008641,1774744244019,-150.0,0.00015289,2]
[419008642,1774744244030,-500.0,0.00015289,2]
[419008643,1774744244041,-500.0,0.00015289,2]
[419008644,1774744244053,-500.0,0.00015289,2]
[419008645,1774744244064,-500.0,0.00015289,2]
[419008646,1774744244074,-500.0,0.00015289,2]
[419008647,1774744244085,-500.0,0.00015289,2]
[419008648,1774744244097,-500.0,0.00015289,2]
[419008649,1774744244109,-500.0,0.00015289,2]
[419008650,1774744244120,-500.0,0.00015289,2]
[419008651,1774744244131,-329.95993889,0.00015289,2]
[419008652,1774744244142,-500.0,0.00015289,2]
[419008653,1774744244154,-500.0,0.00015289,2]
[419008654,1774744244165,-500.0,0.00015289,2]
[419008655,1774744244176,-500.0,0.00015289,2]
[419008656,1774744244187,-500.0,0.00015289,2]
[419008657,1774744244198,-500.0,0.00015289,2]
[419008659,1774744244209,-500.0,0.00015289,2]
[419008660,1774744244220,-500.0,0.00015289,2]
[419008661,1774744244231,-500.0,0.00015289,2]
[419008662,1774744244241,-500.0,0.00015289,2]
[419008663,1774744244252,-500.0,0.00015289,2]
[419008664,1774744244264,-479.99718921,0.00015289,2]
[419008665,1774744244275,-500.0,0.00015289,2]
[419008666,1774744244286,-500.0,0.00015289,2]
[419008667,1774744244297,-500.0,0.00015289,2]
[419008669,1774744244309,-489.0,0.00015289,2]
[419008670,1774744244322,-500.0,0.00015289,2]
[419008671,1774744244334,-500.0,0.00015289,2]
[419008672,1774744244346,-503.28066809,0.00015289,2]
[419008673,1774744244358,-500.0,0.00015289,2]
[419008674,1774744244369,-489.0,0.00015289,2]
[419008675,1774744244380,-500.0,0.00015289,2]
[419008676,1774744244392,-500.0,0.00015289,2]
[419008677,1774744244404,-489.0,0.00015289,2]
[419008678,1774744244416,-500.0,0.00015289,2]
[419008679,1774744244428,-500.0,0.00015289,2]
[419008680,1774744244439,-500.0,0.00015289,2]
[419008681,1774744244451,-489.0,0.00015289,2]
[419008682,1774744244464,-500.0,0.00015289,2]
[419008683,1774744244475,-577.37301328,0.00015289,2]
[419008685,1774744244487,-489.0,0.00015289,2]
[419008686,1774744244497,-500.0,0.00015289,2]
[419008687,1774744244509,-489.0,0.00015289,2]
[419008688,1774744244520,-500.0,0.00015289,2]
[419008689,1774744244532,-489.0,0.00015289,2]
[419008690,1774744244543,-500.0,0.00015289,2]
[419008691,1774744244555,-489.0,0.00015289,2]
[419008693,1774744244566,-500.0,0.00015289,2]
[419008695,1774744244577,-489.0,0.00015289,2]
[419008697,1774744244589,-500.0,0.00015289,2]
[419008699,1774744244600,-489.0,0.00015289,2]
[419008702,1774744244612,-500.0,0.00015289,2]
[419008704,1774744244622,-489.0,0.00015289,2]
[419008706,1774744244633,-500.0,0.00015289,2]
[419008708,1774744244644,-489.0,0.00015289,2]
[419008709,1774744244655,-500.0,0.00015289,2]
[419008710,1774744244810,-489.0,0.00015289,2]
[419008711,1774744244821,-489.0,0.00015289,2]
[419008712,1774744244831,-489.0,0.00015289,2]
[419008713,1774744244841,-500.0,0.00015289,2]
[419008714,1774744244850,-489.0,0.00015289,2]
[419008715,1774744244859,-489.0,0.00015289,2]
[419008716,1774744244868,-500.0,0.00015289,2]
[419008717,1774744244877,-489.0,0.00015289,2]
[419008718,1774744244887,-455.89445997,0.00015289,2]
[419008719,1774744244896,-489.0,0.00015289,2]
[419008720,1774744244905,-489.0,0.00015289,2]
[419008721,1774744244914,-489.0,0.00015289,2]
[419008722,1774744244924,-489.0,0.00015289,2]
[419008723,1774744244934,-489.0,0.00015289,2]
[419008724,1774744244945,-503.30017584,0.00015289,2]
[419008725,1774744244955,-250.0,0.00015315,2]
[419008726,1774744244964,-2000.0,0.00015421,2]
[419008727,1774744244973,-1965.66697892,0.00015421,2]
[419008728,1774744244983,-909.38735598,0.00015444,2]
[419008729,1774744244992,-4326.57463207,0.00015491,2]
[419008730,1774744245002,-2080.25367425,0.00015577,2]
[419008731,1774744245011,-823.0,0.00015674,2]
[419008732,1774744245020,-154.43743755,0.00015747,2]
[419008733,1774744245030,-3292.0,0.00015762,2]
[419008734,1774744245040,-2000.0,0.00015773,2]
[419008735,1774744245049,-736.0,0.00015776,2]
[419008736,1774744245059,-789.0,0.00015781,2]
[419008737,1774744245069,-463.0,0.00015781,2]
[419008738,1774744245078,-6691.07,0.000158,2]
[419008739,1774744245088,-697.86,0.000159,2]
[419008740,1774744245097,-588.84,0.000159,2]
[419008741,1774744245107,-4326.57463207,0.000159,2]
[419008742,1774744245116,-1219.4477189,0.000159,2]
[419008743,1774744245125,-182.19721526,0.000159,2]
[419008744,1774744245134,-326.80387007,0.000159,2]
[419008745,1774744245144,-3818.32173057,0.0001596,2]
[419008746,1774744245154,-389.39669243,0.00015969,2]
[419008747,1774744245164,-160.24397777,0.00015973,2]
[419008748,1774744245174,-500.0,0.00015973,2]
[419008749,1774744245183,-500.0,0.00015973,2]
[419008750,1774744245194,-500.0,0.00015973,2]
[419008751,1774744245204,-500.53296643,0.00015973,2]
[419008752,1774744245213,-500.0,0.00015973,2]
[419008753,1774744245222,-500.27278246,0.00015973,2]
[419008754,1774744245232,-500.0,0.00015973,2]
[419008755,1774744245241,-151.0,0.00015997,2]
[419008756,1774744245250,-3375.8726318,0.00015997,2]
[419008757,1774744245259,-250929.7603547,0.00015997,2]
[419008758,1774744245268,-8352.3437828,0.00015997,2]
[419008759,1774744245278,-10761.6718246,0.00015997,2]
[419008760,1774744245287,-61492.1796326,0.00015997,2]
[419008761,1774744245296,-90466.5677751,0.00015997,2]
[419008762,1774744245305,-671.40174411,0.00015999,2]
[419008763,1774744245314,-1008463.82393119,0.00016,2]
[419008764,1774744245346,-2802466.39429809,0.00016,2]
[419008765,1774744245369,-458.87313864,0.00016,2]
[419008766,1774744245384,-1146.36127367,0.00016,2]
[419008767,1774744245395,-272.24010028,0.00016,2]
[419008768,1774744246770,-19000.024488,0.00016,2]
[419008769,1774744246781,-834.90166488,0.00016,2]
[419008770,1774744246872,-371.52533801,0.00016,2]
[419008786,1774744816318,166.66,0.00011198,2]
[419008787,1774744816720,166.66,0.00011434,2]
[419008788,1774744966306,336.99,0.00011122,2]
[419008790,1774745207448,1500.0,0.00011241,2]
[419008791,1774745322141,7500.0,0.000115,4]
[419008792,1774745332816,1000.01,0.00011138,2]
[419008799,1774745431530,-300.0,0.00011137,2]
[419008800,1774745431540,-87.6034373,0.00011137,2]
[419008801,1774745431861,-1112.3965627,0.00011137,2]
[419008802,1774745431871,-300.0,0.00011137,2]
[419008803,1774745431880,-278.0,0.00011137,2]
[419008804,1774745431890,-2689.83402354,0.00011137,2]
[419008805,1774745431900,-54.93127447,0.00011138,2]
[419008806,1774745431912,-447.67906776,0.00011138,2]
[419008821,1774745432128,-595.51496788,0.00011138,2]
[419008822,1774745432140,-719.62920142,0.00011138,2]
[419008823,1774745432152,-2379.26744176,0.00011138,2]
[419008824,1774745432164,-895.41,0.00011138,2]
[419008825,1774745432176,-685.99457404,0.00011138,2]
[419008827,1774745432188,-901.23418243,0.00011138,2]
[419008829,1774745432201,-1389.08734021,0.00011138,2]
[419008830,1774745432213,-773.65135523,0.00011138,2]
[419008831,1774745432224,-445.0721864,0.00011138,2]
[419008851,1774745437748,-1556.85973365,0.00011138,2]
[419008853,1774745437759,-887.72867475,0.00011138,2]
[419008854,1774745437770,-1648.45,0.00011584,2]
[419008855,1774745437780,-7279.56751119,0.000116,4]
[419008891,1774745440172,-7720.43248881,0.000116,4]
[419008892,1774745440183,-166.66,0.0001167,2]
[419008893,1774745440192,-22500.0,0.000117,4]
[419008894,1774745440202,-30000.0,0.000118,4]
[419008895,1774745440212,-164.84509952,0.00011822,2]
[419008896,1774745440221,-697.11500022,0.00011822,2]
[419008897,1774745440231,-500.0,0.00011899,2]
[419008898,1774745440240,-500.0,0.00011899,2]
[419008899,1774745440250,-625.28656892,0.00011899,2]
[419008900,1774745440260,-500.0,0.00011899,2]
[419008901,1774745440269,-500.0,0.00011899,2]
[419008902,1774745440280,-500.0,0.00011899,2]
[419008903,1774745440290,-500.0,0.00011899,2]
[419008904,1774745440301,-500.0,0.00011899,2]
[419008905,1774745440438,-37500.0,0.000119,4]
[419008906,1774745440448,-423.6032981,0.000119,2]
[419008907,1774745440458,-166.66,0.00011906,2]
[419008908,1774745440468,-500.0,0.00011911,2]
[419008909,1774745440477,-151.0,0.00011919,2]
[419008910,1774745440487,-500.0,0.00011921,2]
[419008911,1774745440497,-527.11426026,0.00011921,2]
[419008912,1774745440506,-500.0,0.00011921,2]
[419008913,1774745440516,-455.76306883,0.00011921,2]
[419008914,1774745440526,-1500000.0,0.00011922,2]
[419008915,1774745440535,-2500000.0,0.00011922,2]
[419008916,1774745440545,-438.0,0.00011957,2]
[419008917,1774745440555,-500.0,0.00011973,2]
[419008918,1774745440565,-500.0,0.00011973,2]
[419008919,1774745440574,-500.0,0.00011973,2]